[Event "*** Titled Tuesday Blitz"]
[Site "Chess.com"]
[Date "2019.04.02"]
[Round "1"]
[White "Fy_Rakotomaharo"]
[Black "Satscho"]
[Result "1-0"]
[WhiteElo "2620"]
[BlackElo "2306"]
[TimeControl "180+2"]
[EndTime "14:05:52 PDT"]
[Termination "Fy_Rakotomaharo won by checkmate"]

1. d4 {[%clk 0:03:01.9]} 1... Nf6 {[%clk 0:02:59.1]} 2. c4 {[%clk 0:03:03]} 2...
g6 {[%clk 0:02:59.8]} 3. Nc3 {[%clk 0:03:04.2]} 3... Bg7 {[%clk 0:03:00.3]} 4.
e4 {[%clk 0:03:05.1]} 4... d6 {[%clk 0:03:01.9]} 5. Be2 {[%clk 0:03:06.4]} 5...
O-O {[%clk 0:03:02.3]} 6. Bg5 {[%clk 0:03:08]} 6... h6 {[%clk 0:03:03.6]} 7. Be3
{[%clk 0:03:09.2]} 7... c5 {[%clk 0:03:05.2]} 8. dxc5 {[%clk 0:03:07]} 8... dxc5
{[%clk 0:03:06.1]} 9. Bxc5 {[%clk 0:03:03.4]} 9... Qc7 {[%clk 0:02:50]} 10. Be3
{[%clk 0:02:59.3]} 10... Nc6 {[%clk 0:02:47]} 11. Nf3 {[%clk 0:02:52.5]} 11...
Bg4 {[%clk 0:02:45.3]} 12. Nd2 {[%clk 0:02:50.2]} 12... Bxe2 {[%clk 0:02:44.4]}
13. Qxe2 {[%clk 0:02:51.1]} 13... e6 {[%clk 0:02:37.5]} 14. O-O {[%clk
0:02:49.7]} 14... Rfd8 {[%clk 0:02:37.8]} 15. Rac1 {[%clk 0:02:34.8]} 15... Nd7
{[%clk 0:02:12]} 16. Nb3 {[%clk 0:02:27]} 16... Nce5 {[%clk 0:01:59]} 17. f4
{[%clk 0:02:19.8]} 17... Nc6 {[%clk 0:01:31.6]} 18. Nb5 {[%clk 0:02:20.9]} 18...
Qb8 {[%clk 0:01:31.4]} 19. e5 {[%clk 0:02:22.1]} 19... a6 {[%clk 0:01:30.3]} 20.
Nd6 {[%clk 0:02:23.3]} 20... Bf8 {[%clk 0:01:08]} 21. c5 {[%clk 0:02:23.8]}
21... Nb4 {[%clk 0:01:01.4]} 22. Bd4 {[%clk 0:02:03.6]} 22... Nd5 {[%clk
0:00:59.2]} 23. Qe4 {[%clk 0:01:57.4]} 23... Qc7 {[%clk 0:00:54.9]} 24. f5
{[%clk 0:01:56.4]} 24... gxf5 {[%clk 0:00:35.1]} 25. Rxf5 {[%clk 0:01:57.2]}
25... Bxd6 {[%clk 0:00:34.2]} 26. exd6 {[%clk 0:01:52.1]} 26... Qc6 {[%clk
0:00:32.1]} 27. Qg4+ {[%clk 0:01:52.1]} 27... Kf8 {[%clk 0:00:29.1]} 28. Qg7+
{[%clk 0:01:52.7]} 28... Ke8 {[%clk 0:00:30.7]} 29. Qxf7# {[%clk 0:01:53.8]} 1-0

[Event "*** Titled Tuesday Blitz"]
[Site "Chess.com"]
[Date "2019.04.02"]
[Round "1"]
[White "Off-War"]
[Black "MaxLeto"]
[Result "1-0"]
[WhiteElo "2619"]
[BlackElo "2302"]
[TimeControl "180+2"]
[EndTime "14:05:53 PDT"]
[Termination "Off-War won by checkmate"]

1. e4 {[%clk 0:03:01.6]} 1... c5 {[%clk 0:02:49.9]} 2. Nf3 {[%clk 0:03:02.2]}
2... d6 {[%clk 0:02:49.5]} 3. d4 {[%clk 0:03:01.7]} 3... cxd4 {[%clk 0:02:50.9]}
4. Nxd4 {[%clk 0:03:03.6]} 4... Nf6 {[%clk 0:02:52.3]} 5. Nc3 {[%clk 0:03:04.9]}
5... a6 {[%clk 0:02:53.8]} 6. Nb3 {[%clk 0:03:00.2]} 6... e6 {[%clk 0:02:47.8]}
7. g4 {[%clk 0:02:59.8]} 7... Be7 {[%clk 0:02:46.5]} 8. g5 {[%clk 0:03:00.3]}
8... Nfd7 {[%clk 0:02:47.1]} 9. h4 {[%clk 0:03:02.2]} 9... b5 {[%clk 0:02:42.9]}
10. Bg2 {[%clk 0:03:03.4]} 10... Bb7 {[%clk 0:02:44.1]} 11. Be3 {[%clk
0:03:04.4]} 11... Ne5 {[%clk 0:02:39.2]} 12. Qe2 {[%clk 0:03:03.7]} 12... Nc4
{[%clk 0:02:38.5]} 13. O-O-O {[%clk 0:03:04.2]} 13... Nd7 {[%clk 0:02:34.1]} 14.
Bd4 {[%clk 0:03:03.7]} 14... O-O {[%clk 0:02:32.8]} 15. f4 {[%clk 0:03:04.2]}
15... Rc8 {[%clk 0:02:31]} 16. h5 {[%clk 0:02:59.5]} 16... e5 {[%clk 0:02:29.1]}
17. Bf2 {[%clk 0:02:50.8]} 17... exf4 {[%clk 0:02:25.5]} 18. g6 {[%clk
0:02:51.9]} 18... fxg6 {[%clk 0:02:16.5]} 19. hxg6 {[%clk 0:02:48.5]} 19... h6
{[%clk 0:02:18]} 20. Bh3 {[%clk 0:02:49.3]} 20... Bg5 {[%clk 0:01:49.4]} 21.
Be6+ {[%clk 0:02:49.2]} 21... Kh8 {[%clk 0:01:50.4]} 22. Qh5 {[%clk 0:02:50.6]}
22... Nde5 {[%clk 0:01:44.8]} 23. Rdg1 {[%clk 0:02:44.2]} 23... Be7 {[%clk
0:00:41.2]} 24. Nd4 {[%clk 0:01:51.3]} 24... Qa5 {[%clk 0:00:23.6]} 25. Qxh6+
{[%clk 0:01:42.7]} 25... gxh6 {[%clk 0:00:24.4]} 26. Rxh6+ {[%clk 0:01:44.6]}
26... Kg7 {[%clk 0:00:25.7]} 27. Rh7+ {[%clk 0:01:46.3]} 27... Kf6 {[%clk
0:00:27.1]} 28. Bh4# {[%clk 0:01:48]} 1-0

[Event "*** Titled Tuesday Blitz"]
[Site "Chess.com"]
[Date "2019.04.02"]
[Round "1"]
[White "talento10"]
[Black "grzechu96"]
[Result "0-1"]
[WhiteElo "2175"]
[BlackElo "2543"]
[TimeControl "180+2"]
[EndTime "14:05:56 PDT"]
[Termination "grzechu96 won by resignation"]

1. e4 {[%clk 0:03:01.9]} 1... c5 {[%clk 0:02:59.4]} 2. Nf3 {[%clk 0:03:03]} 2...
d6 {[%clk 0:03:00.2]} 3. d4 {[%clk 0:03:04.2]} 3... cxd4 {[%clk 0:03:02.1]} 4.
Nxd4 {[%clk 0:03:06.1]} 4... a6 {[%clk 0:03:03.2]} 5. Nc3 {[%clk 0:03:06.7]}
5... e6 {[%clk 0:03:04.3]} 6. f3 {[%clk 0:03:05.3]} 6... Nf6 {[%clk 0:03:04.6]}
7. Bg5 {[%clk 0:03:06]} 7... Be7 {[%clk 0:03:02.6]} 8. h4 {[%clk 0:03:05.1]}
8... h6 {[%clk 0:03:01.3]} 9. Be3 {[%clk 0:03:05.7]} 9... b5 {[%clk 0:03:01.1]}
10. Qd2 {[%clk 0:03:06.3]} 10... Bb7 {[%clk 0:03:02.3]} 11. O-O-O {[%clk
0:03:07]} 11... Nbd7 {[%clk 0:02:52.9]} 12. Kb1 {[%clk 0:02:59.8]} 12... Rc8
{[%clk 0:02:48.2]} 13. Nce2 {[%clk 0:02:38.1]} 13... d5 {[%clk 0:02:45.6]} 14.
Nf4 {[%clk 0:02:31.9]} 14... Nc5 {[%clk 0:02:39.8]} 15. exd5 {[%clk 0:01:10.4]}
15... Nxd5 {[%clk 0:02:40.3]} 16. Nxd5 {[%clk 0:01:11]} 16... Bxd5 {[%clk
0:02:41.4]} 17. g3 {[%clk 0:00:57.7]} 17... Na4 {[%clk 0:02:35.1]} 18. Be2
{[%clk 0:00:55.5]} 18... O-O {[%clk 0:02:16.9]} 19. g4 {[%clk 0:00:45.6]} 19...
Qd6 {[%clk 0:02:13.8]} 20. h5 {[%clk 0:00:26.3]} 20... Nxb2 {[%clk 0:02:12.8]}
21. Nb3 {[%clk 0:00:17.2]} 21... Nxd1 {[%clk 0:02:08]} 22. Rxd1 {[%clk 0:00:17]}
22... Bxb3 {[%clk 0:02:05.6]} 23. Qxd6 {[%clk 0:00:13.5]} 23... Bxc2+ {[%clk
0:02:06.4]} 24. Kb2 {[%clk 0:00:14.5]} 24... Bxd6 {[%clk 0:02:07.5]} 25. Rxd6
{[%clk 0:00:16.4]} 25... Ba4 {[%clk 0:02:01.9]} 26. Rxa6 {[%clk 0:00:16.3]}
26... Rc2+ {[%clk 0:02:01.9]} 27. Ka3 {[%clk 0:00:18.2]} 27... Rxe2 {[%clk
0:02:03.2]} 0-1

[Event "*** Titled Tuesday Blitz"]
[Site "Chess.com"]
[Date "2019.04.02"]
[Round "1"]
[White "MasterKroket"]
[Black "area_5"]
[Result "0-1"]
[WhiteElo "2382"]
[BlackElo "2696"]
[TimeControl "180+2"]
[EndTime "14:06:03 PDT"]
[Termination "area_5 won by resignation"]

1. d4 {[%clk 0:03:01.1]} 1... g6 {[%clk 0:02:59.5]} 2. c4 {[%clk 0:03:02.2]}
2... Bg7 {[%clk 0:03:00.2]} 3. Nf3 {[%clk 0:03:02.1]} 3... d6 {[%clk 0:02:59.8]}
4. Nc3 {[%clk 0:03:02.7]} 4... Bg4 {[%clk 0:02:57.8]} 5. Bg5 {[%clk 0:03:00.5]}
5... h6 {[%clk 0:02:54.8]} 6. Bh4 {[%clk 0:03:01.1]} 6... Nf6 {[%clk 0:02:55.1]}
7. e3 {[%clk 0:02:57.8]} 7... Nbd7 {[%clk 0:02:51.4]} 8. h3 {[%clk 0:02:55.6]}
8... Bf5 {[%clk 0:02:40.9]} 9. Bd3 {[%clk 0:02:51.3]} 9... Bxd3 {[%clk
0:02:40.1]} 10. Qxd3 {[%clk 0:02:53.2]} 10... c5 {[%clk 0:02:40]} 11. O-O {[%clk
0:02:50.7]} 11... O-O {[%clk 0:02:39.5]} 12. a3 {[%clk 0:02:26.5]} 12... Rc8
{[%clk 0:02:33]} 13. Rac1 {[%clk 0:02:23.8]} 13... Nh5 {[%clk 0:02:26.2]} 14. g4
{[%clk 0:01:55.9]} 14... Nhf6 {[%clk 0:02:26.6]} 15. Bg3 {[%clk 0:01:52.7]}
15... a6 {[%clk 0:02:25.1]} 16. Rfd1 {[%clk 0:01:47.8]} 16... Qc7 {[%clk
0:02:17.4]} 17. Nd5 {[%clk 0:01:40.9]} 17... Nxd5 {[%clk 0:02:17.2]} 18. cxd5
{[%clk 0:01:42.8]} 18... Qb6 {[%clk 0:02:14.4]} 19. Nd2 {[%clk 0:01:24]} 19...
cxd4 {[%clk 0:02:08.8]} 20. Nc4 {[%clk 0:01:25]} 20... Qb5 {[%clk 0:02:09.3]}
21. b4 {[%clk 0:00:33.1]} 21... Qxd5 {[%clk 0:02:00.7]} 22. e4 {[%clk 0:00:32]}
22... Qb5 {[%clk 0:01:55.9]} 23. f4 {[%clk 0:00:30.9]} 23... Nb6 {[%clk
0:01:55.7]} 24. Nb2 {[%clk 0:00:25.6]} 24... Qxd3 {[%clk 0:01:49.5]} 25. Nxd3
{[%clk 0:00:27.5]} 25... Na4 {[%clk 0:01:50.2]} 26. e5 {[%clk 0:00:24.2]} 26...
dxe5 {[%clk 0:01:50.7]} 27. Nxe5 {[%clk 0:00:21.8]} 27... Bxe5 {[%clk
0:01:50.5]} 28. fxe5 {[%clk 0:00:22.5]} 28... Nc3 {[%clk 0:01:51.2]} 0-1

[Event "*** Titled Tuesday Blitz"]
[Site "Chess.com"]
[Date "2019.04.02"]
[Round "1"]
[White "Lagravesamuell"]
[Black "StephenDedalus83"]
[Result "0-1"]
[WhiteElo "2348"]
[BlackElo "2657"]
[TimeControl "180+2"]
[EndTime "14:06:05 PDT"]
[Termination "StephenDedalus83 won by resignation"]

1. d4 {[%clk 0:02:58.6]} 1... Nf6 {[%clk 0:03:00.2]} 2. c4 {[%clk 0:02:59.3]}
2... g6 {[%clk 0:03:01.3]} 3. Nc3 {[%clk 0:02:59.9]} 3... Bg7 {[%clk 0:03:02.3]}
4. e4 {[%clk 0:03:00.9]} 4... d6 {[%clk 0:03:03.4]} 5. Nf3 {[%clk 0:03:02.6]}
5... O-O {[%clk 0:03:04.4]} 6. Be2 {[%clk 0:03:04.2]} 6... e5 {[%clk 0:03:05.3]}
7. O-O {[%clk 0:03:05.8]} 7... Nc6 {[%clk 0:03:06.3]} 8. d5 {[%clk 0:03:07.2]}
8... Ne7 {[%clk 0:03:07.3]} 9. b4 {[%clk 0:03:08.9]} 9... a5 {[%clk 0:03:06.9]}
10. Ba3 {[%clk 0:03:10.1]} 10... b6 {[%clk 0:03:05.8]} 11. bxa5 {[%clk 0:03:09]}
11... Nh5 {[%clk 0:03:06.7]} 12. Re1 {[%clk 0:03:08.2]} 12... f5 {[%clk
0:03:07]} 13. Ng5 {[%clk 0:03:08.8]} 13... Nf4 {[%clk 0:03:06.9]} 14. Bf1 {[%clk
0:03:07.5]} 14... h6 {[%clk 0:03:07]} 15. Nf3 {[%clk 0:03:05.7]} 15... fxe4
{[%clk 0:03:01.4]} 16. Nxe4 {[%clk 0:03:06.3]} 16... Bg4 {[%clk 0:03:00.8]} 17.
Re3 {[%clk 0:02:58]} 17... Nf5 {[%clk 0:03:01]} 18. Rc3 {[%clk 0:02:43.6]} 18...
Nd4 {[%clk 0:03:00.5]} 19. axb6 {[%clk 0:02:40.9]} 19... Nh3+ {[%clk 0:02:50]}
20. Kh1 {[%clk 0:02:20]} 20... cxb6 {[%clk 0:01:57.1]} 21. Be2 {[%clk
0:02:19.9]} 21... Nxe2 {[%clk 0:01:53.5]} 22. Qxe2 {[%clk 0:02:20.9]} 22... Nf4
{[%clk 0:01:51.7]} 23. Qe1 {[%clk 0:01:46]} 23... Nxg2 {[%clk 0:01:48.9]} 24.
Kxg2 {[%clk 0:01:46.2]} 24... Bxf3+ {[%clk 0:01:49.4]} 25. Rxf3 {[%clk
0:01:32.7]} 25... Rxf3 {[%clk 0:01:50]} 26. Kxf3 {[%clk 0:01:33.9]} 26... Rxa3+
{[%clk 0:01:51.4]} 27. Kg2 {[%clk 0:01:34.5]} 27... Qh4 {[%clk 0:01:52.8]} 28.
f3 {[%clk 0:01:32.6]} 28... Rxa2+ {[%clk 0:01:52.7]} 29. Nf2 {[%clk 0:01:22.8]}
29... Rc2 {[%clk 0:01:48.6]} 30. Kg1 {[%clk 0:01:04.7]} 30... e4 {[%clk
0:01:44.6]} 31. Ra8+ {[%clk 0:01:05.5]} 31... Kh7 {[%clk 0:01:45.3]} 32. Ra7
{[%clk 0:01:06.3]} 32... Qg5+ {[%clk 0:01:37]} 33. Kf1 {[%clk 0:01:01.1]} 33...
Rc1 {[%clk 0:01:37.7]} 0-1

[Event "*** Titled Tuesday Blitz"]
[Site "Chess.com"]
[Date "2019.04.02"]
[Round "1"]
[White "gemarin"]
[Black "enriquetejedor"]
[Result "0-1"]
[WhiteElo "2036"]
[BlackElo "2518"]
[TimeControl "180+2"]
[EndTime "14:06:12 PDT"]
[Termination "enriquetejedor won by resignation"]

1. d4 {[%clk 0:02:59.4]} 1... e6 {[%clk 0:02:55.4]} 2. c4 {[%clk 0:02:58.4]}
2... Nf6 {[%clk 0:02:54.6]} 3. Nf3 {[%clk 0:02:56.1]} 3... d5 {[%clk 0:02:55.9]}
4. Nc3 {[%clk 0:02:55.8]} 4... Bb4 {[%clk 0:02:54.8]} 5. Qa4+ {[%clk 0:02:54.4]}
5... Nc6 {[%clk 0:02:55.8]} 6. Ne5 {[%clk 0:02:53.8]} 6... Bd7 {[%clk
0:02:55.2]} 7. Nxd7 {[%clk 0:02:53.6]} 7... Qxd7 {[%clk 0:02:54.6]} 8. cxd5
{[%clk 0:02:49.8]} 8... Nxd5 {[%clk 0:02:54.9]} 9. Bd2 {[%clk 0:02:49.6]} 9...
Nxd4 {[%clk 0:02:53.5]} 10. Qxd7+ {[%clk 0:02:45.8]} 10... Kxd7 {[%clk
0:02:55.4]} 11. Rc1 {[%clk 0:02:33.8]} 11... Nc6 {[%clk 0:02:48]} 12. e4 {[%clk
0:02:31.7]} 12... Nxc3 {[%clk 0:02:49]} 13. bxc3 {[%clk 0:02:32.3]} 13... Ba3
{[%clk 0:02:50.3]} 14. Rb1 {[%clk 0:02:32]} 14... b6 {[%clk 0:02:46.2]} 15. f4
{[%clk 0:02:23.1]} 15... Rhd8 {[%clk 0:02:42.5]} 16. Be2 {[%clk 0:02:20.9]}
16... Bc5 {[%clk 0:02:43.1]} 17. Bf3 {[%clk 0:02:21.3]} 17... Na5 {[%clk
0:02:42.9]} 18. f5 {[%clk 0:02:19.7]} 18... e5 {[%clk 0:02:43.1]} 19. Be2 {[%clk
0:02:11.7]} 19... Ke7 {[%clk 0:02:43.3]} 20. Rf1 {[%clk 0:02:10.2]} 20... Rd7
{[%clk 0:02:44.5]} 21. Rf3 {[%clk 0:01:54]} 21... Rad8 {[%clk 0:02:43.1]} 22.
Bc1 {[%clk 0:01:55.2]} 22... f6 {[%clk 0:02:43.3]} 23. Rh3 {[%clk 0:01:50.6]}
23... h6 {[%clk 0:02:44.8]} 24. Rg3 {[%clk 0:01:51.1]} 24... Kf8 {[%clk
0:02:46.3]} 25. h4 {[%clk 0:01:39.2]} 25... c6 {[%clk 0:02:47.5]} 26. Rf3 {[%clk
0:01:37]} 26... Nb7 {[%clk 0:02:48]} 27. c4 {[%clk 0:01:27.5]} 27... Nd6 {[%clk
0:02:49]} 28. Bd3 {[%clk 0:01:25.8]} 28... Nxf5 {[%clk 0:02:49.4]} 29. exf5
{[%clk 0:01:24.6]} 29... Rxd3 {[%clk 0:02:49.1]} 30. Rxd3 {[%clk 0:01:25.3]}
30... Rxd3 {[%clk 0:02:51]} 31. Ke2 {[%clk 0:01:26.5]} 31... Rd4 {[%clk
0:02:52.3]} 32. g3 {[%clk 0:01:26.2]} 32... Rxc4 {[%clk 0:02:53.5]} 33. Bd2
{[%clk 0:01:23.7]} 33... Ke7 {[%clk 0:02:53]} 34. Rb3 {[%clk 0:01:19]} 34... Ra4
{[%clk 0:02:53.2]} 35. Rb2 {[%clk 0:01:18.2]} 35... Re4+ {[%clk 0:02:54.4]} 36.
Kf3 {[%clk 0:01:18.1]} 36... Rd4 {[%clk 0:02:56]} 37. Rc2 {[%clk 0:01:12.2]}
37... Kd6 {[%clk 0:02:57]} 38. Ke2 {[%clk 0:01:11]} 38... Kd5 {[%clk 0:02:57.7]}
39. Kf3 {[%clk 0:01:09.7]} 39... a5 {[%clk 0:02:59.1]} 40. Ke2 {[%clk
0:01:04.8]} 40... a4 {[%clk 0:02:58.2]} 41. Kf3 {[%clk 0:01:04.4]} 41... b5
{[%clk 0:02:59.7]} 42. Ba5 {[%clk 0:01:01.3]} 42... Rd3+ {[%clk 0:02:58.1]} 43.
Kg2 {[%clk 0:01:01.6]} 43... Bd4 {[%clk 0:02:55.4]} 44. g4 {[%clk 0:01:01.1]}
44... c5 {[%clk 0:02:56.3]} 45. Bd8 {[%clk 0:00:58.5]} 45... b4 {[%clk
0:02:50.7]} 46. Be7 {[%clk 0:00:58.3]} 46... b3 {[%clk 0:02:45.8]} 47. axb3
{[%clk 0:00:59.5]} 47... axb3 {[%clk 0:02:47.7]} 48. Rc1 {[%clk 0:01:00.6]}
48... b2 {[%clk 0:02:48.8]} 49. Rb1 {[%clk 0:01:02]} 49... Rd2+ {[%clk
0:02:48.9]} 50. Kg3 {[%clk 0:01:00.5]} 50... Rc2 {[%clk 0:02:50.8]} 51. g5
{[%clk 0:00:59]} 51... hxg5 {[%clk 0:02:50.6]} 52. hxg5 {[%clk 0:00:59.8]} 52...
Rc1 {[%clk 0:02:51.4]} 53. gxf6 {[%clk 0:00:59.4]} 53... gxf6 {[%clk 0:02:51.7]}
54. Bxf6 {[%clk 0:00:59.3]} 54... Rxb1 {[%clk 0:02:52.5]} 0-1

[Event "*** Titled Tuesday Blitz"]
[Site "Chess.com"]
[Date "2019.04.02"]
[Round "1"]
[White "FERNANDEZL1983"]
[Black "JSPrepz"]
[Result "0-1"]
[WhiteElo "2419"]
[BlackElo "2748"]
[TimeControl "180+2"]
[EndTime "14:06:18 PDT"]
[Termination "JSPrepz won by checkmate"]

1. e4 {[%clk 0:03:01.9]} 1... e5 {[%clk 0:03:00.3]} 2. Nf3 {[%clk 0:03:02.4]}
2... Nc6 {[%clk 0:02:59.9]} 3. Bb5 {[%clk 0:03:02.2]} 3... f5 {[%clk 0:03:00.3]}
4. d3 {[%clk 0:03:00.8]} 4... fxe4 {[%clk 0:02:57.7]} 5. dxe4 {[%clk 0:03:01.7]}
5... Nf6 {[%clk 0:02:59.2]} 6. Nc3 {[%clk 0:03:02.3]} 6... Bb4 {[%clk
0:03:00.2]} 7. Qd3 {[%clk 0:03:02.9]} 7... Bxc3+ {[%clk 0:03:01]} 8. bxc3 {[%clk
0:03:02.1]} 8... d6 {[%clk 0:03:02]} 9. Bc4 {[%clk 0:02:57.2]} 9... Qe7 {[%clk
0:03:00.2]} 10. O-O {[%clk 0:02:55.5]} 10... Be6 {[%clk 0:02:57.2]} 11. Nd2
{[%clk 0:02:53.1]} 11... O-O {[%clk 0:02:55.8]} 12. f3 {[%clk 0:02:51.2]} 12...
Kh8 {[%clk 0:02:56.1]} 13. Rb1 {[%clk 0:02:51.1]} 13... Rab8 {[%clk 0:02:55.4]}
14. a4 {[%clk 0:02:52]} 14... Bd7 {[%clk 0:02:56.5]} 15. Bb3 {[%clk 0:02:45.7]}
15... Be8 {[%clk 0:02:56.6]} 16. Nc4 {[%clk 0:02:46.4]} 16... Bg6 {[%clk
0:02:54]} 17. Ne3 {[%clk 0:02:46.8]} 17... Qd8 {[%clk 0:02:53.3]} 18. Nf5 {[%clk
0:02:44]} 18... Nd7 {[%clk 0:02:27.5]} 19. Be3 {[%clk 0:02:40.2]} 19... Qf6
{[%clk 0:02:17.7]} 20. g4 {[%clk 0:02:40]} 20... b6 {[%clk 0:01:59]} 21. Qe2
{[%clk 0:02:34.2]} 21... Nc5 {[%clk 0:01:55.4]} 22. Bd5 {[%clk 0:02:33.6]} 22...
Na5 {[%clk 0:01:51.5]} 23. Bxc5 {[%clk 0:02:19.7]} 23... bxc5 {[%clk 0:01:46.9]}
24. Qa6 {[%clk 0:02:17.4]} 24... c6 {[%clk 0:01:33.8]} 25. Ba2 {[%clk
0:02:17.6]} 25... Bxf5 {[%clk 0:01:27.9]} 26. exf5 {[%clk 0:02:16.6]} 26... Rxb1
{[%clk 0:01:23]} 27. Rxb1 {[%clk 0:02:16.3]} 27... Qd8 {[%clk 0:01:24.5]} 28.
Be6 {[%clk 0:02:16.1]} 28... d5 {[%clk 0:01:24]} 29. Qxa7 {[%clk 0:02:15.6]}
29... Nc4 {[%clk 0:01:24.5]} 30. Qxc5 {[%clk 0:02:15.2]} 30... Re8 {[%clk
0:01:22.5]} 31. Rb7 {[%clk 0:02:15.8]} 31... Qg5 {[%clk 0:01:20.7]} 32. Qxc6
{[%clk 0:01:53.1]} 32... Qc1+ {[%clk 0:01:21.4]} 33. Kg2 {[%clk 0:01:54.2]}
33... Ne3+ {[%clk 0:01:22.2]} 34. Kh3 {[%clk 0:01:49.1]} 34... Qf1+ {[%clk
0:01:22.6]} 35. Kh4 {[%clk 0:01:50]} 35... Qf2+ {[%clk 0:00:59.7]} 36. Kg5
{[%clk 0:01:50.2]} 36... Rf8 {[%clk 0:00:54.6]} 37. Qd6 {[%clk 0:01:49.1]} 37...
h6+ {[%clk 0:00:55.3]} 38. Kh5 {[%clk 0:01:42.2]} 38... Qxh2+ {[%clk 0:00:55.3]}
39. Kg6 {[%clk 0:01:43.5]} 39... Rf6# {[%clk 0:00:56.5]} 0-1

[Event "*** Titled Tuesday Blitz"]
[Site "Chess.com"]
[Date "2019.04.02"]
[Round "1"]
[White "NMZanette"]
[Black "Vice64"]
[Result "0-1"]
[WhiteElo "2204"]
[BlackElo "2550"]
[TimeControl "180+2"]
[EndTime "14:06:19 PDT"]
[Termination "Vice64 won by resignation"]

1. e4 {[%clk 0:03:01.9]} 1... c6 {[%clk 0:03:00.4]} 2. d4 {[%clk 0:03:01.6]}
2... d5 {[%clk 0:03:01.9]} 3. exd5 {[%clk 0:03:02.5]} 3... cxd5 {[%clk
0:03:03.8]} 4. c4 {[%clk 0:03:03.3]} 4... Nf6 {[%clk 0:03:03.7]} 5. Nf3 {[%clk
0:03:03.4]} 5... e6 {[%clk 0:03:04.9]} 6. c5 {[%clk 0:03:03.5]} 6... Ne4 {[%clk
0:03:05.2]} 7. Bb5+ {[%clk 0:02:59.8]} 7... Nc6 {[%clk 0:03:05.6]} 8. O-O {[%clk
0:02:59.8]} 8... Be7 {[%clk 0:03:04.5]} 9. Ne5 {[%clk 0:02:59.6]} 9... Bd7
{[%clk 0:03:04.6]} 10. Bxc6 {[%clk 0:02:59.5]} 10... Bxc6 {[%clk 0:03:04.2]} 11.
Nc3 {[%clk 0:02:54.3]} 11... O-O {[%clk 0:03:02.5]} 12. Nxc6 {[%clk 0:02:42.8]}
12... bxc6 {[%clk 0:03:02.8]} 13. Nxe4 {[%clk 0:02:41.6]} 13... dxe4 {[%clk
0:03:04.7]} 14. Be3 {[%clk 0:02:35.4]} 14... f5 {[%clk 0:03:03.2]} 15. Qb3
{[%clk 0:02:29.4]} 15... Qd5 {[%clk 0:03:01.5]} 16. Qxd5 {[%clk 0:02:30.4]}
16... exd5 {[%clk 0:03:02.8]} 17. Bf4 {[%clk 0:02:31.4]} 17... g5 {[%clk
0:03:03.2]} 18. Be5 {[%clk 0:02:32.1]} 18... f4 {[%clk 0:03:01.4]} 19. Rab1
{[%clk 0:02:31.2]} 19... Bf6 {[%clk 0:02:57.3]} 20. Bxf6 {[%clk 0:02:29.5]}
20... Rxf6 {[%clk 0:02:58.2]} 21. b4 {[%clk 0:02:30.5]} 21... a6 {[%clk
0:02:59.5]} 22. Rb3 {[%clk 0:02:29.6]} 22... g4 {[%clk 0:02:53]} 23. Rfb1 {[%clk
0:02:24]} 23... Kg7 {[%clk 0:02:50.2]} 24. a4 {[%clk 0:02:24.4]} 24... Kg6
{[%clk 0:02:51.4]} 25. h3 {[%clk 0:02:23.9]} 25... h5 {[%clk 0:02:51.3]} 26.
hxg4 {[%clk 0:02:23.9]} 26... hxg4 {[%clk 0:02:52.4]} 27. b5 {[%clk 0:02:22.1]}
27... axb5 {[%clk 0:02:54.3]} 28. axb5 {[%clk 0:02:23.1]} 28... cxb5 {[%clk
0:02:54]} 29. Rxb5 {[%clk 0:02:24.2]} 29... e3 {[%clk 0:02:48.3]} 30. Rb6 {[%clk
0:02:18.1]} 30... e2 {[%clk 0:02:32.1]} 31. Rxf6+ {[%clk 0:01:42.7]} 31... Kxf6
{[%clk 0:02:34]} 32. Re1 {[%clk 0:01:42.3]} 32... f3 {[%clk 0:02:33.6]} 33. gxf3
{[%clk 0:01:43.5]} 33... gxf3 {[%clk 0:02:34.8]} 34. Kh2 {[%clk 0:01:45.1]}
34... Kf5 {[%clk 0:02:36.1]} 35. Kg3 {[%clk 0:01:46.1]} 35... Ke4 {[%clk
0:02:37.4]} 36. c6 {[%clk 0:01:46.3]} 36... Rc8 {[%clk 0:02:33.9]} 37. Rc1
{[%clk 0:01:47.4]} 37... Rg8+ {[%clk 0:02:29.8]} 38. Kh4 {[%clk 0:01:46.1]}
38... Kd3 {[%clk 0:02:29.2]} 39. c7 {[%clk 0:01:46.7]} 39... Kd2 {[%clk
0:02:30]} 40. c8=Q {[%clk 0:00:57.9]} 40... Rxc8 {[%clk 0:02:28.8]} 41. Rxc8
{[%clk 0:00:59.3]} 41... e1=Q {[%clk 0:02:28.4]} 42. Kg3 {[%clk 0:00:59.6]}
42... Qe4 {[%clk 0:02:22.7]} 43. Rf8 {[%clk 0:00:57.9]} 43... Qxd4 {[%clk
0:02:23]} 44. Rxf3 {[%clk 0:00:58.1]} 44... Qg7+ {[%clk 0:02:23.8]} 45. Kf4
{[%clk 0:00:58.8]} 45... d4 {[%clk 0:02:24.5]} 46. Rg3 {[%clk 0:00:59.6]} 46...
Qe7 {[%clk 0:02:23]} 47. Rb3 {[%clk 0:00:56.2]} 47... d3 {[%clk 0:02:23.8]} 48.
f3 {[%clk 0:00:56.6]} 48... Qf7+ {[%clk 0:02:24.2]} 0-1